bitfinex-derivatives/quotes_ETHF0:USTF0_20250726
["timestamp","ask_amount","ask_price","bid_price","bid_amount"]
[1753527562296,6.1339,3760.3,3760.2,13.51073]
[1753527562496,3.2078,3761.0,3759.9,0.26567234]
[1753527562497,2.4953,3760.0,3759.9,0.26567234]
[1753527562698,6.1339,3760.0,3759.9,13.51077]
[1753527562891,6.1339,3760.0,3759.9,13.7710979]
[1753527563293,6.1339,3760.0,3759.9,0.2603279]
[1753527563486,6.1339,3760.0,3759.9,12.977]
[1753527564092,6.66566,3760.0,3759.9,12.977]
[1753527565194,7.44684426,3760.0,3759.9,12.977]
[1753527565395,6.66566,3760.0,3759.9,12.977]
[1753527566198,2.4953,3759.3,3759.2,0.55049074]
[1753527566396,6.1339,3759.3,3759.2,12.99262074]
[1753527568492,6.1339,3759.3,3759.2,13.26020656]
[1753527569194,6.1339,3759.3,3759.2,12.99262074]
[1753527571698,6.1339,3759.3,3759.2,0.01862074]
[1753527571904,6.1339,3759.3,3759.2,12.99162074]
[1753527575408,6.66576,3759.3,3759.2,12.99162074]
[1753527575799,6.1339,3759.3,3759.2,12.99162074]
[1753527579108,6.66576,3759.3,3759.2,12.98762074]
[1753527580312,6.66576,3759.3,3759.2,0.01862074]
[1753527580813,6.66576,3759.3,3759.2,12.98562074]
[1753527581206,6.66576,3759.3,3759.2,0.01522794]
[1753527584312,0.53195,3758.7,3758.6,22.971]
[1753527584613,6.74055,3758.7,3758.6,35.936]
[1753527585007,6.2086,3758.7,3758.6,35.936]
[1753527585312,6.74055,3758.7,3758.6,35.936]
[1753527586307,6.74055,3758.7,3758.6,22.971]
[1753527586512,6.74055,3758.7,3758.6,35.936]
[1753527586914,0.8656,3758.7,3758.6,37.0058698]
[1753527587111,0.8656,3759.0,3758.8,0.2657]
[1753527587311,1.5667,3759.1,3758.8,0.2657]
[1753527587509,0.8656,3758.9,3758.8,0.2657]
[1753527588210,0.8656,3758.8,3758.7,0.79764]
[1753527588415,0.8656,3758.8,3758.7,0.2657]
[1753527588611,0.8656,3758.8,3758.7,0.79765]
[1753527588917,0.8656,3758.8,3758.7,0.2657]
[1753527589111,2.4323,3759.1,3758.8,0.2657]
[1753527589313,0.8656,3759.0,3758.8,0.2657]
[1753527589512,0.8656,3759.0,3758.9,0.53192]
[1753527590816,1.5667,3759.6,3758.9,3.2078]
[1753527591116,1.5667,3759.6,3759.4,0.53184]
[1753527591316,6.2086,3759.6,3759.5,12.961]
[1753527592217,6.2086,3759.6,3759.5,13.49283]
[1753527593816,5.2084,3759.6,3759.5,13.49283]
[1753527594018,3.9137,3759.6,3759.5,13.49283]
[1753527594220,2.4323,3759.6,3759.5,13.49283]
[1753527594521,0.8656,3759.6,3759.5,16.70063]
[1753527594909,3.0481,3760.2,3759.5,16.1688]
[1753527595115,0.8656,3759.8,3759.7,0.53181]
[1753527597216,2.4323,3759.8,3759.7,0.53181]
[1753527597810,0.8656,3759.8,3759.7,0.53181]
[1753527598016,2.4323,3760.3,3760.2,0.53173]
[1753527598220,6.2086,3760.3,3760.2,13.48673]
[1753527598814,6.2086,3760.3,3760.2,12.955]
[1753527600215,6.2086,3760.3,3760.2,13.48674]
[1753527600721,4.9139,3760.3,3760.2,13.48674]
[1753527601123,6.2781,3760.3,3760.2,13.48674]
[1753527601421,2.4323,3760.3,3760.2,13.48674]
[1753527601623,0.8656,3760.3,3760.2,13.48674]
[1753527601823,0.8862,3760.8,3760.7,0.53167]
[1753527602022,0.8862,3760.8,3760.7,3.73947]
[1753527602524,6.233,3760.8,3760.7,3.73947]
[1753527603123,6.233,3760.8,3760.7,16.68947]
[1753527604725,0.8862,3760.8,3760.7,16.68947]
[1753527605620,2.4087,3760.8,3760.7,16.68947]
[1753527605921,6.233,3760.8,3760.7,16.68947]
[1753527606821,6.233,3760.8,3760.7,16.68647]
[1753527608316,6.233,3760.8,3760.7,16.68347]
[1753527608720,2.4601,3760.8,3760.7,12.944]
[1753527608921,0.61,3760.8,3760.7,12.944]
[1753527609125,2.4601,3760.8,3760.7,16.68346]
[1753527609325,2.4601,3760.8,3760.5,22.972]
[1753527609521,4.8688,3760.6,3760.0,0.53176]
[1753527609728,6.233,3760.0,3759.9,3.2078]
[1753527609920,6.233,3760.0,3759.9,16.1508]
[1753527610116,6.233,3760.0,3759.9,16.68258]
[1753527610520,6.233,3760.0,3759.8,22.972]
[1753527610720,6.233,3760.0,3759.9,12.942]
[1753527611423,2.4601,3760.0,3759.9,12.941]
[1753527611821,2.2504,3759.9,3759.8,22.972]
[1753527612128,6.233,3759.9,3759.8,35.913]
[1753527612321,6.76478,3759.9,3759.8,22.972]
[1753527612723,6.76478,3759.9,3759.8,35.913]
[1753527613726,6.76478,3759.9,3759.1,3.2078]
[1753527613727,6.233,3759.2,3759.1,3.2078]
[1753527613923,6.233,3759.2,3759.1,16.1478]
[1753527614323,6.233,3759.2,3759.1,3.2078]
[1753527614527,6.233,3759.2,3759.1,16.1468]
[1753527614922,6.233,3759.2,3759.1,16.1478]
[1753527615328,6.233,3759.2,3759.1,16.67969]
[1753527615829,6.233,3759.2,3759.1,16.1478]
[1753527617629,6.233,3759.2,3759.1,16.1468]
[1753527618132,6.76488,3759.2,3759.1,16.1468]
[1753527618529,6.233,3759.2,3759.1,16.1468]
[1753527620732,6.233,3759.2,3759.1,3.2078]
[1753527620931,6.233,3759.2,3759.1,16.1458]
[1753527621334,6.76488,3759.2,3758.8,22.976]
[1753527621530,6.233,3758.9,3758.8,22.976]
[1753527621736,6.233,3758.9,3758.8,35.913]
[1753527622135,6.76492,3758.9,3758.8,35.913]
[1753527622328,6.76492,3758.9,3758.8,22.976]
[1753527622530,6.76492,3758.9,3758.8,35.913]
[1753527622833,2.4601,3758.7,3758.6,0.2722098]
[1753527623131,2.4601,3758.4,3758.3,3.2078]
[1753527623333,6.233,3758.4,3758.3,16.1438]
[1753527623929,6.233,3758.3,3758.2,23.24394286]
[1753527624134,0.8862,3758.3,3758.2,36.17994286]
[1753527624334,2.4087,3758.3,3758.2,36.17994286]
[1753527624535,3.0187,3758.3,3758.2,36.71196286]
[1753527624726,2.4087,3758.3,3758.2,36.71196286]
[1753527624931,0.8862,3758.3,3758.2,36.71196286]
[1753527626831,4.8688,3758.3,3758.2,36.71196286]
[1753527627035,6.233,3758.3,3758.2,36.71196286]
[1753527627737,6.233,3758.3,3758.2,36.17994286]
[1753527628433,6.233,3758.3,3758.2,13.20394286]
[1753527628634,6.233,3758.3,3758.2,0.26794286]
[1753527628837,6.233,3758.3,3758.2,12.935]
[1753527629236,3.9826,3758.3,3757.9,26.1858]
[1753527629435,2.4601,3758.1,3758.0,12.935]
[1753527629636,4.51463,3758.1,3757.9,26.1858]
[1753527629836,6.2191,3758.0,3757.9,3.2078]
[1753527630036,6.2191,3758.0,3757.9,16.1428]
[1753527630037,6.1165,3758.0,3757.9,16.1428]
[1753527630947,6.1165,3758.0,3757.9,12.935]
[1753527631137,6.1165,3758.0,3757.9,13.46706]
[1753527631439,6.056,3757.9,3757.8,0.72899111]
[1753527631741,6.056,3757.9,3757.8,13.66299111]
[1753527632140,6.056,3757.9,3757.8,13.13092111]
[1753527632644,6.056,3757.9,3757.8,13.66300111]
[1753527634145,6.056,3757.9,3757.8,13.93411396]
[1753527634146,4.7644,3757.9,3757.8,13.93411396]
[1753527634341,2.9432,3757.9,3757.8,13.93411396]
[1753527634743,0.8723,3757.9,3757.8,13.93411396]
[1753527636145,0.8723,3758.6,3757.9,0.2657]
[1753527636345,2.9432,3758.6,3758.5,4.00548]
[1753527636546,6.056,3758.6,3758.5,16.67278]
[1753527637246,6.056,3758.6,3758.5,12.933]
[1753527637746,6.056,3758.6,3758.5,12.932]
[1753527637946,6.056,3758.6,3758.5,13.46398]
[1753527638541,6.056,3758.6,3758.5,12.932]
[1753527638947,6.056,3758.6,3758.5,13.46398]
[1753527639343,3.2078,3759.4,3757.8,3.72214057]
[1753527639644,6.056,3758.5,3758.4,0.53198]
[1753527639844,6.056,3758.5,3758.4,13.46298]
[1753527640443,6.056,3758.5,3758.4,13.1967]
[1753527640848,6.056,3758.5,3758.4,13.72869]
[1753527641049,6.056,3758.5,3758.4,0.79769]
[1753527641244,6.056,3758.5,3758.4,13.1957]
[1753527641443,2.3996,3758.5,3758.2,0.53202]
[1753527641748,6.056,3758.2,3758.1,0.79773]
[1753527641942,6.056,3758.2,3758.1,13.72673]
[1753527642143,6.056,3758.2,3758.1,0.79773]
[1753527642344,6.056,3758.2,3758.1,13.1947]
[1753527642842,6.056,3758.2,3758.1,0.2657]
[1753527643042,6.056,3758.2,3758.1,13.1947]
[1753527643242,2.3996,3758.2,3758.0,0.2657]
[1753527643438,6.056,3758.0,3757.9,3.73985]
[1753527643645,6.056,3758.0,3757.9,16.66885]
[1753527644347,6.58805,3758.0,3757.9,12.928]
[1753527644543,2.93165,3758.0,3757.9,12.928]
[1753527645145,5.29645,3758.0,3757.9,12.928]
[1753527645348,1.39676,3757.9,3757.8,0.19692111]
[1753527645551,6.056,3757.6,3757.5,22.98]
[1753527645752,6.5881,3757.6,3757.5,35.908]
[1753527646445,6.056,3757.6,3757.5,22.98]
[1753527646751,6.056,3757.6,3757.5,35.908]
[1753527647051,6.5881,3757.6,3757.5,35.908]
[1753527647252,6.056,3757.6,3757.5,35.908]
[1753527647654,6.056,3757.6,3757.5,36.0689]
[1753527648256,6.056,3757.6,3757.5,13.3463]
[1753527648646,6.056,3757.6,3757.5,12.928]
[1753527649255,2.3996,3757.3,3757.2,0.1609]
[1753527649457,6.056,3757.3,3757.2,13.0879]
[1753527649650,6.056,3757.3,3757.2,0.1609]
[1753527649956,6.056,3757.3,3757.0,3.2078]
[1753527649957,6.056,3757.1,3757.0,3.3687]
[1753527650156,6.056,3757.1,3757.0,3.6261]
[1753527650357,6.056,3757.1,3757.0,3.3687]
[1753527650358,6.58817,3757.1,3757.0,3.3687]
[1753527650658,6.58817,3757.1,3757.0,16.1348]
[1753527650857,6.056,3757.1,3757.0,3.2078]
[1753527651053,6.58817,3757.1,3757.0,16.2957]
[1753527652259,6.58817,3757.1,3757.0,16.56759471]
[1753527652954,6.58817,3757.1,3757.0,16.82499471]
[1753527653159,6.056,3757.1,3757.0,16.82499471]
[1753527654760,6.056,3757.1,3757.0,17.35718471]
[1753527654952,6.056,3757.1,3757.0,16.82499471]
[1753527655160,2.9432,3757.1,3757.0,17.35718471]
[1753527655356,2.3648,3757.1,3757.0,17.35718471]
[1753527655560,2.3648,3757.1,3757.0,16.82499471]
[1753527656063,6.056,3757.1,3757.0,3.89799471]
[1753527656360,6.58817,3757.1,3757.0,16.2947]
[1753527656854,6.58817,3757.1,3757.0,3.2078]
[1753527657060,6.5882,3756.9,3756.8,22.984]
[1753527657255,6.5882,3756.9,3756.8,35.909]
[1753527659766,6.5882,3756.9,3756.8,22.984]
[1753527660056,6.5882,3756.9,3756.2,0.17853561]
[1753527660057,2.91908,3756.3,3756.2,0.17853561]
[1753527660258,6.52338,3756.3,3756.2,0.01863561]
[1753527660456,0.8729,3756.3,3756.2,13.35803561]
[1753527661252,2.2955,3756.3,3756.2,13.35803561]
[1753527661457,2.2955,3756.3,3756.2,0.43403561]
[1753527661658,2.2955,3756.3,3756.2,13.89033561]
[1753527662056,2.8839,3756.3,3756.2,14.16051094]
[1753527663063,3.8291,3756.3,3756.2,14.16051094]
[1753527663265,5.9911,3756.3,3756.2,14.16051094]
[1753527664261,0.8729,3756.3,3756.2,14.42621094]
[1753527665164,5.9911,3757.0,3756.9,0.2556]
[1753527665360,5.9911,3757.0,3756.9,13.3384]
[1753527665761,5.9911,3757.0,3756.9,13.8706]
[1753527666261,0.8729,3757.0,3756.9,13.8706]
[1753527666664,3.2407,3757.0,3756.9,13.8706]
[1753527667059,4.6823,3757.0,3756.9,13.8706]
[1753527667259,5.9911,3757.0,3756.9,13.8706]
[1753527667965,5.9911,3757.0,3756.9,0.1598]
[1753527668264,5.9911,3756.6,3756.5,0.69206]
[1753527668470,5.9911,3756.6,3756.3,0.1598]
[1753527668767,3.2078,3757.4,3756.4,13.86967]
[1753527668768,5.9911,3756.5,3756.4,13.86967]
[1753527669064,5.9911,3756.5,3756.4,17.07747]
[1753527669262,0.8729,3756.5,3756.4,17.07747]
[1753527669454,0.8729,3756.8,3756.7,0.94763]
[1753527669662,3.8094,3757.5,3756.5,1.33064]
[1753527669860,3.8094,3757.5,3757.4,0.53213]
[1753527670158,5.1182,3757.5,3757.4,13.45313]
[1753527671866,5.9911,3757.5,3757.4,13.45313]
[1753527672362,0.8729,3757.8,3757.7,0.53209]
[1753527672561,2.3145,3757.8,3757.7,0.53209]
[1753527672760,5.9911,3757.8,3757.7,13.45209]
[1753527673862,5.9911,3757.8,3757.7,12.92]
[1753527674561,5.9911,3757.8,3757.7,13.45209]
[1753527675062,5.9911,3757.8,3757.7,12.92]
[1753527676468,5.9911,3757.8,3757.7,13.45209]
[1753527676967,5.9911,3757.8,3757.7,12.92]
[1753527677666,2.2955,3757.8,3757.7,13.45209]
[1753527677864,0.8729,3757.8,3757.7,13.45209]
[1753527678266,0.8729,3758.1,3758.0,0.53205]
[1753527679067,2.2955,3758.1,3758.0,0.53205]
[1753527680268,2.8839,3758.1,3758.0,0.53205]
[1753527680468,4.6823,3758.1,3758.0,0.53205]
[1753527680665,5.9911,3758.1,3758.0,0.53205]
[1753527680970,5.9911,3757.8,3757.7,13.45209]
[1753527681571,4.6823,3757.8,3757.7,13.45209]
[1753527681872,0.8729,3757.8,3757.7,13.45209]
[1753527682074,0.8729,3758.1,3758.0,0.53205]
[1753527684874,0.8729,3758.1,3758.0,3.73985]
[1753527686875,4.1927,3759.1,3758.0,8.2078]
[1753527687070,5.9911,3759.1,3759.0,0.53191]
[1753527687272,5.9911,3759.1,3759.0,13.44491]
[1753527688274,5.9911,3759.1,3759.0,16.65271]
[1753527689773,4.6823,3759.1,3759.0,16.65271]
[1753527690072,2.8839,3759.1,3759.0,16.65271]
[1753527690278,2.2955,3759.1,3759.0,16.65271]
[1753527690680,0.8729,3759.1,3759.0,16.65271]
[1753527690873,2.0015,3759.6,3759.0,21.1208]
[1753527691074,3.5487,3759.6,3759.5,0.53183]
[1753527691376,4.9884,3759.9,3759.8,0.53179]
[1753527691878,6.5356,3759.9,3759.8,0.53179]
[1753527692276,6.5356,3759.9,3759.8,3.73959]
[1753527692580,1.905,3759.6,3758.9,3.2078]
[1753527692773,6.3356,3759.6,3759.5,0.53183]
[1753527693577,6.3356,3759.0,3758.9,3.73972]
[1753527693778,6.3356,3759.0,3758.9,16.64872]
[1753527694480,6.3356,3759.0,3758.9,3.73972]
[1753527694679,6.3356,3759.0,3758.9,16.64872]
[1753527695872,6.3356,3759.0,3758.9,3.2078]
[1753527696080,6.3356,3758.6,3758.5,22.981]
[1753527696279,6.3356,3758.6,3758.5,35.889]
[1753527697273,6.3356,3758.6,3758.5,34.9468]
[1753527697479,6.86756,3758.6,3758.5,29.1362]
[1753527698183,2.5289,3758.1,3758.0,1.43924]
[1753527698378,6.3356,3758.1,3758.0,14.34724]
[1753527699377,6.3356,3758.1,3758.0,15.62654]
[1753527699583,6.3356,3758.1,3758.0,17.22954]
[1753527700278,6.3356,3758.1,3758.0,18.72784]
[1753527701281,6.3356,3758.1,3758.0,18.1958]
[1753527702072,0.8819,3758.1,3758.0,19.60125]
[1753527702282,0.8819,3758.4,3758.3,6.6932]
[1753527702781,6.3356,3758.4,3758.3,2.1865]
[1753527702985,6.3356,3758.4,3758.3,13.8142]
[1753527704085,6.3356,3758.4,3758.3,15.0935]
[1753527704786,6.3356,3758.4,3758.3,13.8142]
[1753527704980,6.3356,3758.4,3758.3,0.9072]
[1753527705176,6.3356,3758.4,3758.3,13.8142]
[1753527705689,4.0808,3758.4,3758.3,22.808]
[1753527706289,1.5472,3758.7,3758.3,22.276]
[1753527706488,0.8819,3758.6,3758.5,2.5102]
[1753527706688,0.6239,3758.8,3758.7,2.5102]
[1753527706988,3.1989,3758.8,3758.7,16.82255]
[1753527707385,6.3356,3758.8,3758.7,18.72675]
[1753527707987,6.3356,3758.8,3758.7,17.22845]
[1753527708885,6.3356,3758.8,3758.7,18.72675]
[1753527709686,6.3356,3758.8,3758.7,17.22845]
[1753527710476,4.5765,3759.1,3759.0,3.04211]
[1753527710683,5.4584,3759.1,3759.0,5.81971]
[1753527710888,4.0808,3759.1,3759.0,6.69311]
[1753527711690,6.3356,3759.1,3759.0,5.81971]
[1753527712091,0.8819,3759.1,3759.0,6.69311]
[1753527712991,1.5058,3759.1,3759.0,6.69311]
[1753527713192,4.0808,3759.1,3759.0,6.69311]
[1753527713988,0.8819,3759.1,3759.0,6.69311]
[1753527714995,4.0808,3759.1,3759.0,6.69311]
[1753527716091,0.8819,3759.1,3759.0,6.69311]
[1753527716892,3.053,3759.1,3759.0,6.69311]
[1753527717494,6.3356,3759.1,3759.0,5.81971]
[1753527718895,6.3356,3759.1,3759.0,4.32141]
[1753527719094,6.3356,3759.1,3759.0,2.71841]
[1753527719688,6.3356,3759.1,3759.0,0.53191]
[1753527719894,2.4666,3758.8,3758.7,4.65875]
[1753527720089,6.2298,3758.8,3758.7,19.45785]
[1753527720392,6.2298,3758.8,3758.7,21.82065]
[1753527728197,3.9907,3758.8,3758.7,22.70415]
[1753527728394,0.86,3758.8,3758.7,22.70415]
[1753527728998,2.3984,3758.8,3758.7,22.70415]
[1753527729999,0.86,3758.8,3758.7,22.70415]
[1753527730200,4.4955,3759.1,3759.0,6.59431]
[1753527730394,4.4955,3759.1,3759.0,19.49331]
[1753527730593,4.4955,3759.1,3759.0,19.51711019]
[1753527730800,5.3555,3759.1,3759.0,19.51711019]
[1753527731799,3.9907,3759.1,3759.0,19.51711019]
[1753527731998,6.2298,3759.1,3759.0,18.63361019]
[1753527732191,6.2298,3759.1,3759.0,0.55571019]
[1753527732394,6.2298,3759.1,3759.0,13.45471019]
[1753527733195,6.2298,3759.1,3759.0,14.74401019]
[1753527733401,6.2298,3759.1,3759.0,15.66301019]
[1753527734100,6.2298,3759.1,3759.0,2.76401019]
[1753527734300,6.2298,3759.1,3759.0,15.66201019]
[1753527734800,6.2298,3759.1,3759.0,17.68491019]
[1753527735001,6.2298,3759.1,3759.0,18.63261019]
[1753527735401,6.2298,3759.1,3759.0,19.51611019]
[1753527735597,3.9907,3759.1,3759.0,19.51611019]
[1753527738200,5.065,3759.9,3759.8,2.74009]
[1753527738398,5.065,3759.9,3759.8,17.65899]
[1753527738600,5.065,3759.9,3759.8,17.68279019]
[1753527738805,6.4298,3759.9,3759.8,16.26769019]
[1753527739802,6.4298,3759.9,3759.8,18.63049019]
[1753527741102,4.1907,3759.9,3759.8,22.72179019]
[1753527743203,1.06,3759.9,3759.8,22.72179019]
[1753527743402,3.2078,3760.8,3760.6,0.53167]
[1753527743403,1.3648,3760.7,3760.6,0.53167]
[1753527743607,3.8314,3760.7,3760.6,13.44847019]
[1753527745403,6.2298,3760.7,3760.6,13.44847019]
[1753527746098,6.2298,3760.7,3760.6,14.59582495]
[1753527747109,6.2298,3760.7,3760.6,13.71232495]
[1753527747604,9.4376,3760.7,3760.6,0.02380019]
[1753527747804,9.4376,3760.7,3760.6,12.91480019]
[1753527748005,9.4376,3760.7,3760.6,13.44648019]
[1753527748812,9.4376,3760.7,3760.6,12.91380019]
[1753527749007,1.483,3760.3,3760.2,0.26606153]
[1753527749308,6.2298,3760.3,3760.2,12.89]
[1753527749501,2.4666,3760.3,3760.2,12.889]
[1753527749904,2.4666,3760.3,3760.2,13.42074]
[1753527750105,2.4666,3760.3,3760.2,12.889]
[1753527750305,6.2763,3760.3,3760.2,12.889]
[1753527750811,6.2763,3760.3,3760.1,0.53174]
[1753527751010,2.4666,3760.3,3760.2,12.889]
[1753527751411,2.99832,3760.3,3760.2,12.889]
[1753527751609,6.80802,3760.3,3760.2,12.889]
[1753527751808,1.3891,3760.3,3759.9,1.62396491]
[1753527752110,6.3385,3759.7,3759.6,1.43382]
[1753527752310,6.3385,3759.7,3759.6,14.32182]
[1753527752813,6.3385,3759.7,3759.6,19.61462]
[1753527753313,6.3385,3759.7,3759.6,19.0828]
[1753527754114,6.3385,3759.7,3759.6,16.303]
[1753527754809,6.87031,3759.7,3759.6,16.303]
[1753527756416,6.87031,3759.7,3759.6,19.0828]
[1753527759912,6.87031,3759.7,3759.6,12.888]
[1753527760418,6.87032,3759.6,3759.5,0.26797204]
[1753527760617,6.87032,3759.6,3759.5,12.886]
[1753527761015,6.87032,3759.6,3759.5,19.0808]
[1753527761220,6.01662,3759.6,3759.5,19.0808]
[1753527762519,5.4848,3759.6,3759.5,19.0808]
[1753527763516,5.4848,3759.6,3759.5,19.34978304]
[1753527763716,6.01662,3759.6,3759.5,19.34978304]
[1753527763920,6.87032,3759.6,3759.5,19.34978304]
[1753527764618,6.3385,3759.6,3759.5,19.34978304]
[1753527765015,6.87032,3759.6,3759.5,19.34978304]
[1753527767222,6.3385,3759.6,3759.5,19.34978304]
[1753527768121,6.87032,3759.6,3759.5,19.34978304]
[1753527768420,6.3385,3759.6,3759.5,19.34978304]
[1753527768824,6.3385,3759.6,3759.5,19.88162304]
[1753527769125,5.4848,3759.6,3759.5,19.88162304]
[1753527769421,4.5765,3759.6,3759.5,19.88162304]
[1753527770221,0.5318,3759.8,3759.5,16.19982304]
[1753527770422,5.1083,3759.8,3759.7,2.513]
[1753527770622,6.8703,3759.8,3759.7,19.0778]
[1753527773230,6.3385,3759.8,3759.7,19.0778]
[1753527773530,6.87029,3759.8,3759.7,19.0778]
[1753527780436,1.9812,3759.8,3759.7,19.60961]
[1753527780636,0.5921,3759.8,3759.7,19.60961]
[1753527781134,1.8763,3759.8,3759.7,19.60961]
[1753527781635,3.3958,3759.8,3759.7,6.72661]
[1753527781834,3.3958,3759.8,3759.7,19.60561]
[1753527782234,4.3797,3759.8,3759.7,19.60561]
[1753527782531,3.2078,3759.9,3759.8,0.53179]
[1753527782738,3.2078,3759.9,3759.8,6.69309]
[1753527783233,6.6762,3760.5,3760.4,6.69301]
[1753527783435,5.3121,3760.7,3760.6,2.98908]
[1753527783634,8.4551,3760.7,3760.6,6.1613]
[1753527783834,9.3044,3760.7,3760.6,6.1613]
[1753527784532,9.83607,3760.7,3760.6,6.1613]
[1753527785638,6.62827,3760.7,3760.6,6.1613]
[1753527786137,3.33532,3761.0,3760.9,2.4574]
[1753527786338,3.5708926,3761.0,3760.9,6.1613]
[1753527786529,5.1395926,3761.0,3760.9,19.0363]
[1753527786734,6.0966,3760.7,3760.6,4.2999]
[1753527786935,6.0966,3760.7,3760.6,18.0303]
[1753527787136,6.62827,3760.7,3760.6,19.0363]
[1753527787336,6.0966,3760.7,3760.6,19.0363]
[1753527788239,9.3044,3760.7,3760.6,19.0363]
[1753527789040,3.653,3760.6,3760.3,3.7039]
[1753527789341,2.4436,3759.8,3759.7,1.4892]
[1753527789543,6.62839,3759.8,3759.7,16.3042]
[1753527789842,6.62839,3759.8,3759.7,19.0343]
[1753527790738,6.62845,3759.4,3759.3,0.26294655]
[1753527790946,6.62845,3759.4,3759.3,12.873]
[1753527791939,6.62848,3759.2,3759.1,3.8034]
[1753527792140,0.53189,3759.1,3759.0,22.975]
[1753527792342,5.10899,3759.1,3759.0,37.194]
[1753527792542,6.62849,3759.1,3759.0,39.5519]
[1753527792748,6.62849,3759.1,3759.0,39.8192356]
[1753527792948,6.0966,3759.1,3759.0,39.8192356]
[1753527793145,6.62849,3759.1,3759.0,39.8192356]
[1753527793347,6.62849,3759.1,3759.0,43.16752855]
[1753527793541,6.0966,3759.1,3759.0,43.16752855]
[1753527793747,5.2473,3759.1,3759.0,43.16752855]
[1753527794550,5.2473,3759.1,3759.0,39.8192356]
[1753527794747,0.53185,3759.5,3759.4,2.4574]
[1753527794951,0.53185,3759.5,3759.4,19.0343]
[1753527795151,6.62845,3759.5,3759.4,19.0343]
[1753527796753,3.2078,3759.6,3759.4,19.0343]
[1753527797049,4.90421,3759.7,3759.6,6.1613]
[1753527797254,4.90421,3759.7,3759.6,4.6721]
[1753527797447,4.90421,3759.7,3759.6,6.1613]
[1753527797650,4.90421,3759.7,3759.6,4.8153]
[1753527797850,4.90421,3759.7,3759.6,6.1613]
[1753527799051,2.10051,3759.7,3759.6,6.1613]
[1753527799452,0.5318,3759.8,3759.6,6.1613]
[1753527799648,5.75349,3759.9,3759.8,6.1613]
[1753527799848,5.75349,3759.9,3759.8,19.0323]
[1753527800249,3.2078,3760.0,3759.8,15.3284]
[1753527800449,3.2078,3760.0,3759.9,6.1613]
[1753527800854,3.2078,3760.0,3759.9,6.69308]
[1753527801055,5.0768,3760.4,3760.3,3.3261]
[1753527801254,1.40664,3760.2,3760.1,12.87]
[1753527801452,6.62834,3760.2,3760.1,12.87]
[1753527802953,6.62834,3760.2,3760.1,13.7387]
[1753527803255,6.62834,3760.2,3760.1,14.3347]
[1753527803459,6.62834,3760.2,3760.1,17.1699]
[1753527803659,6.62834,3760.2,3760.1,18.0253]
[1753527803852,6.62834,3760.2,3760.1,19.0313]
[1753527804048,6.62834,3760.2,3760.1,12.87]
[1753527806652,0.53178,3759.9,3759.8,1.4892]
[1753527806961,0.53178,3759.9,3759.8,2.3579]
[1753527806962,9.83618,3759.9,3759.8,2.3579]
[1753527807560,9.83618,3759.9,3759.8,4.2999]
[1753527807758,9.83618,3759.9,3759.8,5.1553]
[1753527809057,9.83618,3759.9,3759.8,3.8093]
[1753527809358,0.53181,3759.7,3759.6,16.8136]
[1753527809563,6.62841,3759.7,3759.6,19.0283]
[1753527809858,5.2217,3759.7,3759.0,22.975]
[1753527810061,9.76158,3759.2,3759.1,6.1454]
[1753527810259,9.76158,3759.2,3759.0,22.975]
[1753527810260,6.55379,3759.1,3759.0,22.975]
[1753527810459,6.55379,3759.1,3759.0,29.1204]
[1753527812064,5.64799,3759.1,3759.0,29.1204]
[1753527813152,1.10819,3759.1,3759.0,29.1204]
[1753527813357,0.53189,3759.1,3759.0,29.1204]
[1753527815259,3.2078,3759.3,3759.1,2.7914]
[1753527815563,3.73966,3759.3,3759.2,6.1454]
[1753527815764,0.53186,3759.3,3759.2,6.1454]
[1753527816465,6.55376,3759.3,3759.2,6.1454]
[1753527817859,5.64796,3759.3,3759.2,6.1454]
[1753527818762,2.07896,3759.3,3759.2,6.1454]
[1753527819361,1.95194,3759.5,3759.2,6.1454]
[1753527819557,2.52824,3759.5,3759.4,2.4715]
[1753527819763,1.10814,3759.5,3759.4,6.1454]
[1753527821266,0.5763,3759.5,3759.4,6.1454]
[1753527822368,1.8595,3759.5,3759.4,6.1454]
[1753527822564,0.5763,3759.5,3759.4,6.1454]
[1753527822869,9.6424,3759.7,3759.6,6.1454]
[1753527823066,5.392,3759.7,3759.6,6.1454]
[1753527823264,5.392,3759.7,3759.6,6.67722]
[1753527824166,5.392,3759.7,3759.6,6.1454]
[1753527824764,5.9683,3759.7,3759.6,6.1454]
[1753527825572,5.9683,3759.7,3759.6,6.67722]
[1753527825972,0.5763,3759.7,3759.6,6.67722]
[1753527826373,3.2078,3760.3,3759.8,5.36509]
[1753527826573,0.5763,3760.0,3759.9,18.0387]
[1753527826774,4.2504,3760.0,3759.9,19.0084]
[1753527827073,5.1161,3760.0,3759.9,19.0084]
[1753527827370,6.0219,3760.0,3759.9,19.0084]
[1753527827867,2.3909,3760.0,3759.9,19.54018]
[1753527828060,6.55364,3760.2,3760.1,6.1454]
[1753527828262,6.0219,3760.2,3760.1,6.1454]
[1753527828469,6.55364,3760.2,3760.1,6.1454]
[1753527830870,6.0219,3760.2,3760.1,6.1454]
[1753527831475,6.55364,3760.2,3760.1,6.1454]
[1753527831871,6.0219,3760.2,3760.1,6.1454]
[1753527832269,6.0219,3760.2,3760.1,6.67715]